fUST/lending_fUST_20240127
["ID","MTS","AMOUNT","RATE_DAILY","PERIOD"]
[312840621,1706331031838,-327.61566675,0.00022676,2]
[312840622,1706331031847,-500.82476263,0.00022677,2]
[312840623,1706331031856,-168.430659,0.00023093,2]
[312840624,1706331031865,-21563.3345331,0.00023793,2]
[312840625,1706331031874,-471.05101678,0.00023837,2]
[312840626,1706331031883,-200.27809185,0.00023837,2]
[312840627,1706331031892,-2105.3133158,0.00023837,2]
[312840628,1706331031901,-422.34685131,0.00023837,2]
[312840629,1706331031911,-155.00709482,0.00023837,2]
[312840630,1706331031920,-155.17595828,0.00023838,2]
[312840631,1706331031929,-166.063049,0.00024558,2]
[312840632,1706331031939,-175.89663083,0.00024629,2]
[312840633,1706331031948,-625.15059201,0.0002463,2]
[312840634,1706331031957,-200.0,0.00026219,15]
[312840635,1706331031966,-290.6944281,0.00027,2]
[312840636,1706331031976,-7605.06271809,0.00027814,2]
[312840637,1706331031985,-200.93387921,0.000279,2]
[312840638,1706331031995,-200.93387921,0.000279,2]
[312840639,1706331032004,-162.25579296,0.00027997,2]
[312840640,1706331032016,-2142.32,0.00028084,3]
[312840641,1706331032116,-1487.72,0.00028084,3]
[312840642,1706331032126,-1785.27,0.00028086,3]
[312840643,1706331032135,-199.34410144,0.00028093,2]
[312840644,1706331032145,-21641.13798056,0.00028094,2]
[312840668,1706331037801,-10202.84952288,0.00028094,2]
[312840721,1706332231932,-327.61566675,0.00023743,2]
[312840722,1706332231942,-155.0,0.00023744,2]
[312840723,1706332231952,-928.74622268,0.00023745,2]
[312840724,1706332231962,-155.0,0.00023746,2]
[312840725,1706332231972,-1916.72029117,0.00023791,2]
[312840726,1706332231981,-155.0,0.00024999,2]
[312840727,1706332231990,-241.42418253,0.00025,2]
[312840728,1706332231999,-7.25954376,0.00025,2]
[312840765,1706332238017,-7382.21909954,0.00025,2]
[312840766,1706332238027,-689.41556789,0.00025285,5]
[312840767,1706332238037,-3366.13782869,0.00025297,2]
[312840768,1706332238048,-2074.9947044,0.00025506,2]
[312840769,1706332238058,-184.098033,0.00025697,2]
[312840770,1706332238069,-241.485214,0.00026,2]
[312840771,1706332238079,-290.6944281,0.00027,2]
[312840772,1706332238090,-200.0,0.00027499,15]
[312840773,1706332238101,-1901.44944296,0.000275,2]
[312840774,1706332238110,-224.84714308,0.00028,7]
[312840775,1706332238119,-1646.16,0.00028086,3]
[312840776,1706332238129,-427.05321488,0.00028092,2]
[312840777,1706332238139,-200.30775623,0.00028092,2]
[312840778,1706332238150,-1296.57964106,0.00028093,2]
[312840779,1706332238160,-155.11769562,0.00028093,2]
[312840780,1706332238170,-1242.89012812,0.00028093,2]
[312840781,1706332238179,-1583.7528565,0.00028093,2]
[312840782,1706332238189,-5212.65916057,0.00028093,2]
[312840783,1706332238199,-260.92970133,0.00028094,2]
[312840784,1706332238208,-764.75702273,0.00028094,2]
[312840785,1706332238218,-3194.88866007,0.00028094,2]
[312840786,1706332238227,-5142.48950146,0.00028094,2]
[312840787,1706332238237,-621.60436449,0.00028094,2]
[312840788,1706332238246,-214.30947879,0.00028094,2]
[312840789,1706332238257,-595.27318689,0.00028094,2]
[312840790,1706332238266,-564.23583423,0.00028094,2]
[312840791,1706332238276,-199.30151643,0.00028094,2]
[312840792,1706332238286,-632.96828925,0.00028095,2]
[312840793,1706332238296,-1848.03012919,0.00028095,2]
[312840794,1706332238305,-5441.68746625,0.00028095,2]
[312840795,1706332238314,-9857.61308296,0.00028095,2]
[312840796,1706332238325,-851.06760342,0.00028096,2]
[312840797,1706332238335,-18914.66367952,0.00028096,2]
[312840798,1706332238346,-1419.08911956,0.00028097,2]
[312840799,1706332238358,-2081.23072938,0.00028097,2]
[312840800,1706332238368,-1202.54591632,0.00028097,2]
[312840801,1706332238378,-3724.05801455,0.00028097,2]
[312840802,1706332238387,-155.41458436,0.00028098,2]
[312840803,1706332238398,-1933.42796518,0.00029,2]
[312840804,1706332238408,-620.00158755,0.0002937,2]
[312840805,1706332238418,-2963.79714697,0.000295,30]
[312840806,1706332238427,-162.25579296,0.000299,2]
[312840807,1706332238437,-155.20193267,0.0003,2]
[312840808,1706332238447,-689.09430435,0.0003,4]
[312840809,1706332238456,-154.98450155,0.0003,4]
[312840810,1706332238467,-195.57103754,0.0003,2]
[312840811,1706332238583,-167.04429254,0.0003,2]
[312840812,1706332238593,-2733.32904929,0.0003,2]
[312840813,1706332238602,-6205.88852965,0.0003,2]
[312840814,1706332238611,-2196.27781557,0.0003,2]
[312840815,1706332238621,-214721.8730404,0.0003,30]
[312840816,1706332238631,-409.27812638,0.0003,2]
[312840817,1706332238641,-409.27812638,0.0003,2]
[312840818,1706332238650,-409.27812638,0.0003,2]
[312840819,1706332238659,-409.27812638,0.0003,2]
[312840820,1706332238668,-409.27812638,0.0003,2]
[312840821,1706332238677,-409.27812638,0.0003,2]
[312840822,1706332238686,-409.27812638,0.0003,2]
[312840823,1706332238695,-409.27812638,0.0003,2]
[312840824,1706332238704,-409.27812638,0.0003,2]
[312840825,1706332238715,-409.27812,0.0003,2]
[312840826,1706332238724,-1515.28020489,0.0003,5]
[312840827,1706332238733,-156.1445642,0.00030071,2]
[312840828,1706332238744,-158.81503,0.00030137,2]
[312840829,1706332238753,-279.961413,0.00030137,2]
[312840830,1706332238762,-280.0,0.00030249,15]
[312840831,1706332238771,-162.25579296,0.00030257,2]
[312840832,1706332238781,-162.25579296,0.00030615,2]
[312840833,1706332238790,-620.00007938,0.00030838,2]
[312840834,1706332238800,-162.25579296,0.00030972,2]
[312840835,1706332238809,-3000.0,0.00031,4]
[312840836,1706332238818,-527.69377324,0.00031071,2]
[312840837,1706332238828,-500.0,0.00031071,2]
[312840838,1706332238837,-500.0,0.00031071,2]
[312840839,1706332238846,-500.0,0.00031071,2]
[312840840,1706332238855,-500.0,0.00031071,2]
[312840841,1706332238864,-500.0,0.00031071,2]
[312840842,1706332238874,-500.0,0.00031071,2]
[312840843,1706332238884,-613.07828508,0.00031071,2]
[312840844,1706332238893,-500.0,0.00031071,2]
[312840845,1706332238902,-500.0,0.00031071,2]
[312840846,1706332238915,-631.41771777,0.00031071,2]
[312840847,1706332238924,-500.0,0.00031071,2]
[312840848,1706332238934,-500.0,0.00031071,2]
[312840849,1706332238943,-500.0,0.00031071,2]
[312840850,1706332238953,-500.0,0.00031071,2]
[312840851,1706332238962,-500.0,0.00031071,2]
[312840852,1706332238971,-441.2742623,0.00031071,2]
[312840853,1706332238981,-500.0,0.00031071,2]
[312840854,1706332238991,-500.0,0.00031071,2]
[312840855,1706332239001,-500.0,0.00031071,2]
[312840856,1706332239011,-500.0,0.00031071,2]
[312840857,1706332239020,-500.0,0.00031071,2]
[312840858,1706332239029,-554.59143043,0.00031071,2]
[312840859,1706332239039,-500.0,0.00031071,2]
[312840860,1706332239048,-500.0,0.00031071,2]
[312840861,1706332239061,-500.0,0.00031071,2]
[312840862,1706332239070,-500.0,0.00031071,2]
[312840863,1706332239082,-500.0,0.00031071,2]
[312840864,1706332239091,-500.0,0.00031071,2]
[312840865,1706332239100,-500.0,0.00031071,2]
[312840866,1706332239110,-500.0,0.00031071,2]
[312840867,1706332239120,-500.0,0.00031071,2]
[312840868,1706332239129,-500.0,0.00031071,2]
[312840869,1706332239139,-500.0,0.00031071,2]
[312840870,1706332239148,-500.0,0.00031071,2]
[312840871,1706332239158,-500.0,0.00031071,2]
[312840872,1706332239168,-500.0,0.00031071,2]
[312840873,1706332239178,-500.0,0.00031071,2]
[312840874,1706332239188,-500.0,0.00031071,2]
[312840875,1706332239197,-500.0,0.00031071,2]
[312840876,1706332239206,-500.0,0.00031071,2]
[312840877,1706332239216,-500.0,0.00031071,2]
[312840878,1706332239225,-500.0,0.00031071,2]
[312840879,1706332239235,-500.0,0.00031071,2]
[312840880,1706332239246,-500.0,0.00031071,2]
[312840881,1706332239256,-500.0,0.00031071,2]
[312840882,1706332239266,-500.0,0.00031071,2]
[312840883,1706332239277,-500.0,0.00031071,2]
[312840884,1706332239287,-500.0,0.00031071,2]
[312840885,1706332239297,-500.0,0.00031071,2]
[312840886,1706332239309,-500.0,0.00031071,2]
[312840887,1706332239319,-500.0,0.00031071,2]
[312840888,1706332239330,-500.0,0.00031071,2]
[312840889,1706332239340,-500.0,0.00031071,2]
[312840890,1706332239349,-583.18526658,0.00031071,2]
[312840891,1706332239360,-500.0,0.00031071,2]
[312840892,1706332239370,-500.0,0.00031071,2]
[312840893,1706332239380,-500.0,0.00031071,2]
[312840894,1706332239389,-500.0,0.00031071,2]
[312840895,1706332239400,-500.0,0.00031071,2]
[312840896,1706332239409,-500.0,0.00031071,2]
[312840897,1706332239419,-500.0,0.00031071,2]
[312840898,1706332239430,-500.0,0.00031071,2]
[312840899,1706332239439,-500.0,0.00031071,2]
[312840900,1706332239448,-500.0,0.00031071,2]
[312840901,1706332239457,-500.0,0.00031071,2]
[312840902,1706332239467,-500.0,0.00031071,2]
[312840903,1706332239476,-500.0,0.00031071,2]
[312840904,1706332239486,-500.0,0.00031071,2]
[312840905,1706332239495,-500.0,0.00031071,2]
[312840906,1706332239505,-500.0,0.00031071,2]
[312840907,1706332239514,-500.0,0.00031071,2]
[312840908,1706332239523,-500.0,0.00031071,2]
[312840909,1706332239533,-500.0,0.00031071,2]
[312840910,1706332239542,-500.0,0.00031071,2]
[312840911,1706332239551,-500.0,0.00031071,2]
[312840912,1706332239560,-500.0,0.00031071,2]
[312840913,1706332239569,-500.0,0.00031071,2]
[312840914,1706332239579,-500.0,0.00031071,2]
[312840915,1706332239590,-500.0,0.00031071,2]
[312840916,1706332239599,-500.0,0.00031071,2]
[312840917,1706332239608,-500.0,0.00031071,2]
[312840918,1706332239617,-500.0,0.00031071,2]
[312840919,1706332239626,-500.0,0.00031071,2]
[312840920,1706332239636,-500.0,0.00031071,2]
[312840921,1706332239645,-500.0,0.00031071,2]
[312840922,1706332239654,-500.0,0.00031071,2]
[312840923,1706332239663,-500.0,0.00031071,2]
[312840924,1706332239672,-500.0,0.00031071,2]
[312840925,1706332239682,-500.0,0.00031071,2]
[312840926,1706332239691,-500.0,0.00031071,2]
[312840927,1706332239700,-500.0,0.00031071,2]
[312840928,1706332239709,-500.0,0.00031071,2]
[312840929,1706332239720,-500.0,0.00031071,2]
[312840930,1706332239729,-500.0,0.00031071,2]
[312840931,1706332239738,-500.0,0.00031071,2]
[312840932,1706332239747,-500.0,0.00031071,2]
[312840933,1706332239756,-500.0,0.00031071,2]
[312840934,1706332239765,-500.0,0.00031071,2]
[312840935,1706332239774,-500.0,0.00031071,2]
[312840936,1706332239784,-500.0,0.00031071,2]
[312840937,1706332239793,-500.0,0.00031071,2]
[312840938,1706332239802,-500.0,0.00031071,2]
[312840939,1706332239813,-500.0,0.00031071,2]
[312840940,1706332239824,-500.0,0.00031071,2]
[312840941,1706332239834,-500.0,0.00031071,2]
[312840942,1706332239844,-500.0,0.00031071,2]
[312840943,1706332239854,-500.0,0.00031071,2]
[312840944,1706332239863,-500.0,0.00031071,2]
[312840945,1706332239873,-387.80805046,0.00031071,2]
[312840946,1706332239883,-500.0,0.00031071,2]
[312840947,1706332239892,-500.0,0.00031071,2]
[312840948,1706332239902,-500.0,0.00031071,2]
[312840949,1706332239917,-389.01631233,0.00031071,2]
[312840950,1706332239927,-500.0,0.00031071,2]
[312840951,1706332239938,-1120.34502647,0.00031071,2]
[312840952,1706332239949,-499.99999999,0.00031071,2]
[312840953,1706332239958,-1120.34502647,0.00031071,2]
[312840954,1706332239968,-1120.34502647,0.00031071,2]
[312840955,1706332239978,-1120.34502647,0.00031071,2]
[312840957,1706332240049,-1120.34502647,0.00031071,2]
[312840958,1706332240067,-1120.34502647,0.00031071,2]
[312840959,1706332240078,-1120.34502647,0.00031071,2]
[312840960,1706332240087,-1120.34502647,0.00031071,2]
[312840961,1706332240097,-1120.34502647,0.00031071,2]
[312840962,1706332240107,-1120.34502647,0.00031071,2]
[312840963,1706332240116,-1120.34502647,0.00031071,2]
[312840964,1706332240126,-1120.34502647,0.00031071,2]
[312840965,1706332240135,-1120.34502647,0.00031071,2]
[312840966,1706332240145,-1120.34502647,0.00031071,2]
[312840967,1706332240156,-1120.34502647,0.00031071,2]
[312840968,1706332240165,-1120.34502647,0.00031071,2]
[312840969,1706332240176,-1120.34502647,0.00031071,2]
[312840970,1706332240186,-1120.34502647,0.00031071,2]
[312840971,1706332240195,-1120.34502647,0.00031071,2]
[312840972,1706332240204,-1120.34502647,0.00031071,2]
[312840973,1706332240214,-1120.34502647,0.00031071,2]
[312840974,1706332240223,-1120.34502647,0.00031071,2]
[312840975,1706332240233,-1120.34502647,0.00031071,2]
[312840976,1706332240242,-1120.34502649,0.00031071,2]
[312840977,1706332240251,-316.08860594,0.00031071,3]
[312840978,1706332240260,-234.38710624,0.00031072,3]
[312840979,1706332240269,-5000.0,0.00031072,7]
[312840980,1706332240278,-15268.03830409,0.00031072,4]
[312840981,1706332240287,-8132.9246032,0.00031072,4]
[312840982,1706332240296,-85755.00102912,0.00031072,4]
[312840983,1706332240306,-44893.41180629,0.00031072,2]
[312840984,1706332240315,-50000.0,0.00031072,4]
[312840986,1706332240324,-50000.0,0.00031072,4]
[312840988,1706332240334,-2217.53653374,0.00031072,4]
[312840990,1706332240349,-505.03553068,0.00031072,4]
[312841020,1706332243036,-18619.36501994,0.00031072,4]
[312841081,1706333432176,-166.666667,0.00028579,2]
[312841082,1706333432185,-226.64158344,0.00028859,2]
[312841117,1706333438310,-100.97408331,0.00028859,2]
[312841118,1706333438319,-7712.08201957,0.00028982,2]
[312841119,1706333438329,-7389.4786433,0.00028983,2]
[312841120,1706333438338,-184.098033,0.00029074,2]
[312841121,1706333438347,-1933.42796518,0.00029514,2]
[312841122,1706333438357,-434.75591741,0.00029515,2]
[312841123,1706333438367,-156.1445642,0.00029972,2]
[312841124,1706333438376,-155.02635448,0.0003,2]
[312841125,1706333438385,-2373.62501968,0.0003,2]
[312841126,1706333438395,-1515.28020489,0.0003,5]
[312841127,1706333438403,-155.0,0.0003,4]
[312841128,1706333438412,-155.0,0.0003,4]
[312841129,1706333438421,-292.055774,0.00030137,2]
[312841130,1706333438430,-211.1964663,0.00030141,2]
[312841131,1706333438440,-166.666667,0.00030527,2]
[312841132,1706333438449,-1422.91,0.00030962,3]
[312841133,1706333438458,-1185.76,0.00030962,3]
[312841134,1706333438467,-500.0,0.00030971,2]
[312841135,1706333438477,-933.45,0.00030971,2]
[312841136,1706333438487,-500.0,0.00030971,2]
[312841137,1706333438496,-162.25579296,0.00030972,2]
[312841138,1706333438505,-276000.0,0.00030972,2]
[312841139,1706333438514,-3000.0,0.00031,4]
[312841140,1706333438523,-409.27812638,0.00031,2]
[312841141,1706333438532,-409.27812638,0.00031,2]
[312841142,1706333438541,-409.27812638,0.00031,2]
[312841143,1706333438550,-409.27812638,0.00031,2]
[312841144,1706333438559,-409.27812638,0.00031,2]
[312841145,1706333438568,-409.27812638,0.00031,2]
[312841146,1706333438577,-409.27812638,0.00031,2]
[312841147,1706333438586,-409.27812638,0.00031,2]
[312841148,1706333438595,-409.27812638,0.00031,2]
[312841149,1706333438604,-409.27812,0.00031,2]
[312841150,1706333438613,-195.57103754,0.00031067,2]
[312841151,1706333438623,-252.805556,0.00031068,4]
[312841152,1706333438632,-861.84,0.00031068,2]
[312841153,1706333438642,-507.17877524,0.00031068,2]
[312841154,1706333438651,-2355.38,0.00031068,2]
[312841155,1706333438660,-500.0,0.00031068,2]
[312841156,1706333438669,-500.0,0.00031068,2]
[312841157,1706333438678,-1449.16,0.00031068,2]
[312841158,1706333438688,-500.0,0.00031068,2]
[312841159,1706333438697,-335.7783815,0.00031068,2]
[312841160,1706333438706,-1149.07,0.00031068,2]
[312841161,1706333438715,-500.0,0.00031068,2]
[312841162,1706333438724,-500.0,0.00031068,2]
[312841163,1706333438734,-10619.89,0.00031068,2]
[312841164,1706333438744,-500.0,0.00031068,2]
[312841165,1706333438753,-786.2,0.00031068,2]
[312841166,1706333438762,-200.0,0.00031068,2]
[312841167,1706333438771,-500.0,0.00031068,2]
[312841168,1706333438867,-2803.14,0.00031068,2]
[312841169,1706333438878,-500.0,0.00031068,2]
[312841170,1706333438888,-4709.36,0.00031068,2]
[312841171,1706333438899,-505.62192439,0.00031068,2]
[312841172,1706333438911,-155.27081755,0.00031069,4]
[312841173,1706333438921,-1327.61014966,0.00031069,4]
[312841174,1706333438931,-33836.23702035,0.00031069,4]
[312841175,1706333438940,-426.10577832,0.0003107,2]
[312841176,1706333438949,-2044.83366883,0.0003107,3]
[312841177,1706333438959,-3986.88867207,0.0003107,4]
[312841178,1706333438968,-155.0884766,0.0003107,4]
[312841179,1706333438977,-155.24086416,0.0003107,2]
[312841180,1706333438986,-682.42721753,0.0003107,4]
[312841181,1706333438995,-985.08344604,0.00031071,4]
[312841182,1706333439004,-155.14385857,0.00031071,4]
[312841183,1706333439013,-173.48711985,0.00031071,4]
[312841184,1706333439023,-500.0,0.00031071,2]
[312841185,1706333439033,-500.0,0.00031071,2]
[312841186,1706333439042,-500.0,0.00031071,2]
[312841187,1706333439050,-500.0,0.00031071,2]
[312841188,1706333439059,-500.0,0.00031071,2]
[312841189,1706333439068,-500.0,0.00031071,2]
[312841190,1706333439077,-500.0,0.00031071,2]
[312841191,1706333439087,-500.0,0.00031071,2]
[312841192,1706333439095,-500.0,0.00031071,2]
[312841193,1706333439104,-500.0,0.00031071,2]
[312841194,1706333439113,-500.0,0.00031071,2]
[312841195,1706333439122,-500.0,0.00031071,2]
[312841196,1706333439131,-500.0,0.00031071,2]
[312841197,1706333439141,-500.0,0.00031071,2]
[312841198,1706333439150,-500.0,0.00031071,2]
[312841199,1706333439159,-504.47835295,0.00031071,2]
[312841200,1706333439168,-500.0,0.00031071,2]
[312841201,1706333439178,-500.0,0.00031071,2]
[312841202,1706333439188,-650.0,0.00031071,2]
[312841203,1706333439198,-500.0,0.00031071,2]
[312841204,1706333439207,-500.0,0.00031071,2]
[312841205,1706333439217,-500.0,0.00031071,2]
[312841206,1706333439226,-500.0,0.00031071,2]
[312841207,1706333439235,-500.0,0.00031071,2]
[312841208,1706333439245,-500.0,0.00031071,2]
[312841209,1706333439257,-500.0,0.00031071,2]
[312841210,1706333439269,-554.59143043,0.00031071,2]
[312841211,1706333439278,-500.0,0.00031071,2]
[312841212,1706333439293,-500.0,0.00031071,2]
[312841213,1706333439304,-500.0,0.00031071,2]
[312841214,1706333439313,-500.0,0.00031071,2]
[312841215,1706333439322,-348.77613681,0.00031071,2]
[312841216,1706333439332,-500.0,0.00031071,2]
[312841217,1706333439342,-500.0,0.00031071,2]
[312841218,1706333439351,-500.0,0.00031071,2]
[312841219,1706333439361,-500.0,0.00031071,2]
[312841220,1706333439370,-500.0,0.00031071,2]
[312841221,1706333439382,-500.0,0.00031071,2]
[312841222,1706333439391,-500.0,0.00031071,2]
[312841223,1706333439401,-500.0,0.00031071,2]
[312841224,1706333439410,-500.0,0.00031071,2]
[312841225,1706333439419,-500.0,0.00031071,2]
[312841226,1706333439429,-500.0,0.00031071,2]
[312841227,1706333439438,-500.0,0.00031071,2]
[312841228,1706333439447,-500.0,0.00031071,2]
[312841229,1706333439457,-500.0,0.00031071,2]
[312841230,1706333439467,-500.0,0.00031071,2]
[312841231,1706333439476,-500.0,0.00031071,2]
[312841232,1706333439486,-500.0,0.00031071,2]
[312841233,1706333439495,-500.0,0.00031071,2]
[312841234,1706333439504,-500.0,0.00031071,2]
[312841235,1706333439514,-500.0,0.00031071,2]
[312841236,1706333439523,-500.0,0.00031071,2]
[312841237,1706333439532,-500.0,0.00031071,2]
[312841238,1706333439541,-500.0,0.00031071,2]
[312841239,1706333439550,-500.0,0.00031071,2]
[312841240,1706333439559,-500.0,0.00031071,2]
[312841241,1706333439568,-500.0,0.00031071,2]
[312841242,1706333439578,-500.0,0.00031071,2]
[312841243,1706333439587,-500.0,0.00031071,2]
[312841244,1706333439596,-500.0,0.00031071,2]
[312841245,1706333439605,-512.12818019,0.00031071,2]
[312841246,1706333439614,-500.0,0.00031071,2]
[312841247,1706333439623,-500.0,0.00031071,2]
[312841248,1706333439633,-500.0,0.00031071,2]
[312841249,1706333439642,-500.0,0.00031071,2]
[312841250,1706333439651,-500.0,0.00031071,2]
[312841252,1706333439661,-500.0,0.00031071,2]
[312841253,1706333439670,-500.0,0.00031071,2]
[312841254,1706333439680,-500.0,0.00031071,2]
[312841255,1706333439689,-500.0,0.00031071,2]
[312841256,1706333439699,-500.0,0.00031071,2]
[312841257,1706333439708,-500.0,0.00031071,2]
[312841258,1706333439717,-500.0,0.00031071,2]
[312841259,1706333439727,-500.0,0.00031071,2]
[312841260,1706333439738,-500.0,0.00031071,2]
[312841261,1706333439747,-500.0,0.00031071,2]
[312841262,1706333439757,-500.0,0.00031071,2]
[312841263,1706333439766,-500.0,0.00031071,2]
[312841264,1706333439776,-500.0,0.00031071,2]
[312841265,1706333439785,-500.0,0.00031071,2]
[312841266,1706333439795,-500.0,0.00031071,2]
[312841267,1706333439805,-500.0,0.00031071,2]
[312841268,1706333439814,-500.0,0.00031071,2]
[312841269,1706333439823,-500.0,0.00031071,2]
[312841270,1706333439833,-500.0,0.00031071,2]
[312841271,1706333439842,-500.0,0.00031071,2]
[312841272,1706333439853,-500.0,0.00031071,2]
[312841273,1706333439863,-500.0,0.00031071,2]
[312841274,1706333439873,-500.0,0.00031071,2]
[312841275,1706333439882,-500.0,0.00031071,2]
[312841276,1706333439891,-500.0,0.00031071,2]
[312841277,1706333439901,-500.0,0.00031071,2]
[312841278,1706333439910,-500.0,0.00031071,2]
[312841279,1706333439922,-500.0,0.00031071,2]
[312841280,1706333439933,-500.0,0.00031071,2]
[312841281,1706333439943,-500.0,0.00031071,2]
[312841282,1706333439954,-500.0,0.00031071,2]
[312841283,1706333439963,-500.0,0.00031071,2]
[312841284,1706333439972,-500.0,0.00031071,2]
[312841285,1706333439983,-500.0,0.00031071,2]
[312841286,1706333439993,-500.0,0.00031071,2]
[312841287,1706333440003,-500.0,0.00031071,2]
[312841288,1706333440013,-500.0,0.00031071,2]
[312841289,1706333440022,-500.0,0.00031071,2]
[312841290,1706333440032,-500.0,0.00031071,2]
[312841291,1706333440043,-500.0,0.00031071,2]
[312841292,1706333440052,-500.0,0.00031071,2]
[312841293,1706333440061,-500.0,0.00031071,2]
[312841294,1706333440071,-500.0,0.00031071,2]
[312841295,1706333440080,-500.0,0.00031071,2]
[312841296,1706333440090,-500.0,0.00031071,2]
[312841297,1706333440099,-500.0,0.00031071,2]
[312841298,1706333440108,-500.0,0.00031071,2]
[312841299,1706333440117,-500.0,0.00031071,2]
[312841300,1706333440126,-500.0,0.00031071,2]
[312841301,1706333440136,-500.0,0.00031071,2]
[312841302,1706333440145,-500.0,0.00031071,2]
[312841303,1706333440156,-500.0,0.00031071,2]
[312841304,1706333440166,-500.0,0.00031071,2]
[312841305,1706333440175,-500.0,0.00031071,2]
[312841306,1706333440184,-431.69160947,0.00031071,2]
[312841307,1706333440194,-500.0,0.00031071,2]
[312841308,1706333440203,-500.0,0.00031071,2]
[312841309,1706333440212,-500.0,0.00031071,2]
[312841310,1706333440221,-500.0,0.00031071,2]
[312841311,1706333440230,-500.0,0.00031071,2]
[312841312,1706333440241,-500.0,0.00031071,2]
[312841313,1706333440251,-500.0,0.00031071,2]
[312841314,1706333440260,-500.0,0.00031071,2]
[312841315,1706333440268,-500.0,0.00031071,2]
[312841316,1706333440277,-500.0,0.00031071,2]
[312841317,1706333440292,-500.0,0.00031071,2]
[312841318,1706333440301,-500.0,0.00031071,2]
[312841319,1706333440310,-500.0,0.00031071,2]
[312841320,1706333440319,-500.0,0.00031071,2]
[312841321,1706333440330,-500.0,0.00031071,2]
[312841322,1706333440339,-500.0,0.00031071,2]
[312841323,1706333440349,-500.0,0.00031071,2]
[312841324,1706333440358,-500.0,0.00031071,2]
[312841325,1706333440368,-500.0,0.00031071,2]
[312841326,1706333440378,-500.0,0.00031071,2]
[312841327,1706333440389,-500.0,0.00031071,2]
[312841328,1706333440399,-500.0,0.00031071,2]
[312841329,1706333440410,-500.0,0.00031071,2]
[312841330,1706333440419,-500.0,0.00031071,2]
[312841331,1706333440430,-500.0,0.00031071,2]
[312841332,1706333440440,-500.0,0.00031071,2]
[312841333,1706333440450,-500.0,0.00031071,2]
[312841334,1706333440532,-500.0,0.00031071,2]
[312841335,1706333440543,-500.0,0.00031071,2]
[312841336,1706333440553,-500.0,0.00031071,2]
[312841337,1706333440563,-500.0,0.00031071,2]
[312841338,1706333440575,-500.0,0.00031071,2]
[312841339,1706333440585,-500.0,0.00031071,2]
[312841340,1706333440595,-500.0,0.00031071,2]
[312841341,1706333440604,-500.0,0.00031071,2]
[312841342,1706333440613,-500.0,0.00031071,2]
[312841343,1706333440622,-450.0,0.00031071,2]
[312841344,1706333440632,-500.0,0.00031071,2]
[312841345,1706333440641,-500.0,0.00031071,2]
[312841346,1706333440650,-500.0,0.00031071,2]
[312841347,1706333440660,-500.0,0.00031071,2]
[312841348,1706333440669,-500.0,0.00031071,2]
[312841349,1706333440678,-500.0,0.00031071,2]
[312841350,1706333440687,-506.37316116,0.00031071,2]
[312841351,1706333440696,-500.0,0.00031071,2]
[312841352,1706333440706,-500.0,0.00031071,2]
[312841353,1706333440715,-500.0,0.00031071,2]
[312841354,1706333440724,-500.0,0.00031071,2]
[312841355,1706333440734,-500.0,0.00031071,2]
[312841356,1706333440744,-500.0,0.00031071,2]
[312841357,1706333440753,-500.0,0.00031071,2]
[312841358,1706333440763,-500.0,0.00031071,2]
[312841359,1706333440772,-500.0,0.00031071,2]